fUSD/lending_fUSD_20251228
["ID","MTS","AMOUNT","RATE_DAILY","PERIOD"]
[399923400,1766880275802,279.90190971,0.000301,120]
[399923402,1766880295996,500.0,0.00030137,120]
[399923422,1766880376614,172.26,7.194e-05,2]
[399923423,1766880376819,172.26,7.573e-05,2]
[399923424,1766880377022,172.26,7.952e-05,2]
[399923425,1766880377228,172.26,8.33e-05,2]
[399923426,1766880377441,172.26,8.709e-05,2]
[399923427,1766880377643,172.26,9.088e-05,2]
[399923428,1766880377830,172.26,9.466e-05,2]
[399923429,1766880378038,172.26,9.845e-05,2]
[399923430,1766880378255,172.26,0.00010224,2]
[399923431,1766880378433,172.26,0.00010602,2]
[399923432,1766880378639,172.26,0.00010981,2]
[399923433,1766880378840,172.26,0.0001136,2]
[399923434,1766880379054,172.26,0.00011738,2]
[399923435,1766880379253,172.26,0.00012117,2]
[399923436,1766880379461,172.26,0.00012495,2]
[399923437,1766880379671,172.26,0.00012874,2]
[399923438,1766880379871,172.26,0.00013253,2]
[399923513,1766880631384,-172.26,0.00013631,2]
[399923514,1766880631395,-250.0,0.00013665,2]
[399923515,1766880631404,-152.7215518,0.00013699,2]
[399923518,1766880631455,-269.8084482,0.00013699,2]
[399923519,1766880631464,-172.26,0.0001401,2]
[399923520,1766880631474,-1852.42,0.00014253,2]
[399923521,1766880631483,-3240.0,0.00014259,2]
[399923522,1766880631493,-211.56,0.00014289,2]
[399923523,1766880631504,-172.26,0.00014389,2]
[399923524,1766880631514,-156.63631246,0.00014671,2]
[399923525,1766880631524,-1237.48,0.00014754,2]
[399923526,1766880631540,-941.91,0.00014788,2]
[399923527,1766880631553,-250.0,0.00014995,2]
[399923528,1766880631563,-250.0,0.00014995,2]
[399923529,1766880631573,-251.0,0.00014995,2]
[399923530,1766880631590,-250.0,0.00014995,2]
[399923531,1766880631600,-500.0,0.00015041,2]
[399923532,1766880631610,-1690.72958078,0.00015068,2]
[399923533,1766880631620,-198.3047,0.00015071,2]
[399923534,1766880631631,-1200.0,0.00015142,2]
[399923535,1766880631640,-300.0,0.00015169,2]
[399923536,1766880631650,-300.0,0.00015169,2]
[399923537,1766880631660,-1200.0,0.0001517,2]
[399923538,1766880631670,-161.38,0.00015171,2]
[399923539,1766880631680,-500.0,0.00015171,2]
[399923540,1766880631689,-500.0,0.00015171,2]
[399923541,1766880631699,-217.52861501,0.00015171,2]
[399923542,1766880631709,-2500.0,0.00015231,2]
[399923543,1766880631719,-150.0,0.00015288,2]
[399923544,1766880631728,-150.0,0.00015288,2]
[399923545,1766880631738,-150.0,0.00015288,2]
[399923546,1766880631747,-150.0,0.00015288,2]
[399923547,1766880631757,-150.0,0.00015288,2]
[399923548,1766880631767,-150.0,0.00015288,2]
[399923549,1766880631777,-264.31924694,0.00015288,2]
[399923550,1766880631787,-150.0,0.00015288,2]
[399923551,1766880631796,-150.0,0.00015288,2]
[399923552,1766880631806,-150.0,0.00015288,2]
[399923553,1766880631816,-150.0,0.00015288,2]
[399923554,1766880631826,-1000.0,0.00015294,2]
[399923555,1766880631836,-300.0,0.00015294,2]
[399923556,1766880631845,-11749.64106266,0.00015295,2]
[399923557,1766880631858,-171.33551074,0.00015295,2]
[399923558,1766880631870,-500.0,0.00015322,2]
[399923559,1766880631879,-200.0,0.00015322,2]
[399923560,1766880631889,-200.0,0.00015322,2]
[399923561,1766880631899,-182.62384321,0.00015322,2]
[399923562,1766880631908,-200.0,0.00015322,2]
[399923563,1766880631918,-151.0,0.00015322,2]
[399923564,1766880631934,-151.0,0.00015322,2]
[399923565,1766880631944,-151.0,0.00015322,2]
[399923567,1766880631953,-151.0,0.00015322,2]
[399923569,1766880631964,-151.0,0.00015322,2]
[399923570,1766880631973,-151.0,0.00015322,2]
[399923572,1766880631983,-151.0,0.00015322,2]
[399923574,1766880631992,-151.0,0.00015322,2]
[399923576,1766880632002,-151.0,0.00015322,2]
[399923578,1766880632012,-151.0,0.00015322,2]
[399923580,1766880632022,-151.0,0.00015322,2]
[399923582,1766880632032,-151.0,0.00015328,2]
[399923584,1766880632042,-500.0,0.0001533,2]
[399923586,1766880632052,-500.0,0.0001533,2]
[399923589,1766880632062,-253.66580931,0.0001533,2]
[399923591,1766880632072,-500.0,0.0001533,2]
[399923593,1766880632082,-500.0,0.0001533,2]
[399923595,1766880632092,-500.0,0.0001533,2]
[399923597,1766880632102,-212.19600311,0.0001533,2]
[399923599,1766880632112,-500.0,0.0001533,2]
[399923601,1766880632122,-618.07108086,0.0001533,2]
[399923603,1766880632133,-500.0,0.0001533,2]
[399923605,1766880632143,-500.0,0.0001533,2]
[399923607,1766880632154,-500.0,0.0001533,2]
[399923609,1766880632163,-500.0,0.0001533,2]
[399923611,1766880632174,-500.0,0.0001533,2]
[399923613,1766880632183,-500.0,0.0001533,2]
[399923615,1766880632192,-500.0,0.0001533,2]
[399923617,1766880632202,-196.69227023,0.0001533,2]
[399923619,1766880632211,-500.0,0.0001533,2]
[399923621,1766880632221,-500.0,0.0001533,2]
[399923622,1766880632231,-500.0,0.0001533,2]
[399923623,1766880632240,-500.0,0.0001533,2]
[399923624,1766880632250,-500.0,0.0001533,2]
[399923625,1766880632261,-500.0,0.0001533,2]
[399923626,1766880632270,-500.0,0.0001533,2]
[399923627,1766880632280,-500.0,0.0001533,2]
[399923628,1766880632290,-500.0,0.0001533,2]
[399923630,1766880632299,-500.0,0.0001533,2]
[399923631,1766880632309,-500.0,0.0001533,2]
[399923632,1766880632320,-500.0,0.0001533,2]
[399923633,1766880632330,-500.0,0.0001533,2]
[399923634,1766880632340,-500.0,0.0001533,2]
[399923635,1766880632349,-500.0,0.0001533,2]
[399923636,1766880632359,-500.0,0.0001533,2]
[399923637,1766880632369,-500.0,0.0001533,2]
[399923638,1766880632378,-500.0,0.0001533,2]
[399923639,1766880632388,-500.0,0.0001533,2]
[399923640,1766880632398,-346.02394019,0.0001533,2]
[399923641,1766880632407,-205.67877707,0.0001533,2]
[399923642,1766880632417,-150.0,0.0001533,2]
[399923643,1766880632426,-548.53,0.0001533,2]
[399923644,1766880632436,-8749.0,0.00015331,2]
[399923645,1766880632445,-495515.51598617,0.00015331,2]
[399923646,1766880632457,-3919.20568048,0.00015331,2]
[399923647,1766880632468,-81168.61007603,0.00015331,2]
[399923648,1766880632480,-258195.28517648,0.00015331,2]
[399923649,1766880632491,-1254.41808677,0.00015331,2]
[399923650,1766880632502,-596.32880633,0.00015331,2]
[399923651,1766880632515,-653.4,0.00015331,2]
[399923652,1766880632532,-504.23486966,0.00015331,2]
[399923653,1766880632550,-35900.89533448,0.00015331,2]
[399923654,1766880632561,-14662.42594647,0.00015331,2]
[399923658,1766880637625,-107629.68003713,0.00015331,2]
[399923659,1766880637635,-166.68,0.00015395,2]
[399923660,1766880637645,-1200.676,0.0001543,2]
[399923661,1766880637655,-22689.7818,0.00015431,2]
[399923662,1766880637665,-1000.0,0.00015431,2]
[399923663,1766880637674,-188.4651769,0.00015471,2]
[399923664,1766880637684,-151.0,0.00015516,2]
[399923665,1766880637693,-578.20924308,0.00015519,2]
[399923666,1766880637703,-1000.0,0.00015519,2]
[399923667,1766880637713,-200.0,0.00015519,2]
[399923668,1766880637723,-1000.0,0.00015519,2]
[399923669,1766880637734,-500.0,0.00015519,2]
[399923670,1766880637743,-207.4,0.00015519,2]
[399923671,1766880637753,-1000.0,0.00015519,2]
[399923672,1766880637763,-500.0,0.00015519,2]
[399923673,1766880637773,-215.0738,0.00015519,2]
[399923674,1766880637783,-1000.0,0.00015519,2]
[399923675,1766880637793,-500.0,0.00015519,2]
[399923676,1766880637803,-223.0315306,0.00015519,2]
[399923677,1766880637813,-1000.0,0.00015519,2]
[399923678,1766880637822,-500.0,0.00015519,2]
[399923679,1766880637832,-231.28369723,0.00015519,2]
[399923680,1766880637843,-1000.0,0.00015519,2]
[399923681,1766880637853,-500.0,0.00015519,2]
[399923682,1766880637863,-239.84119403,0.00015519,2]
[399923683,1766880637872,-1000.0,0.00015519,2]
[399923684,1766880637882,-500.0,0.00015519,2]
[399923685,1766880637892,-248.71531821,0.00015519,2]
[399923686,1766880637902,-1000.0,0.00015519,2]
[399923687,1766880637911,-500.0,0.00015519,2]
[399923688,1766880637921,-257.91778498,0.00015519,2]
[399923689,1766880637930,-1000.0,0.00015519,2]
[399923690,1766880637940,-500.0,0.00015519,2]
[399923691,1766880637949,-267.46074303,0.00015519,2]
[399923692,1766880637959,-1000.0,0.00015519,2]
[399923693,1766880637968,-500.0,0.00015519,2]
[399923694,1766880637978,-277.35679052,0.00015519,2]
[399923695,1766880637987,-1000.0,0.00015519,2]
[399923696,1766880637996,-500.0,0.00015519,2]
[399923697,1766880638006,-500.0,0.00015519,2]
[399923698,1766880638015,-594.61337467,0.00015519,2]
[399923699,1766880638025,-500.0,0.00015519,2]
[399923701,1766880638034,-500.0,0.00015519,2]
[399923703,1766880638044,-500.0,0.00015519,2]
[399923705,1766880638053,-500.0,0.00015519,2]
[399923707,1766880638063,-500.0,0.00015519,2]
[399923709,1766880638072,-470.4943089,0.00015519,2]
[399923711,1766880638082,-151.0,0.00015519,2]
[399923713,1766880638092,-620.0,0.00015519,2]
[399923715,1766880638102,-322.6107,0.00015519,2]
[399923717,1766880638111,-151.0,0.00015531,2]
[399923719,1766880638121,-151.0,0.00015531,2]
[399923721,1766880638130,-3957.908861,0.00015559,2]
[399923723,1766880638140,-2627.9928914,0.00015559,2]
[399923725,1766880638149,-71648.3541529,0.00015559,2]
[399923727,1766880638158,-4550.6817915,0.00015559,2]
[399923729,1766880638167,-150.0,0.00015571,2]
[399923731,1766880638177,-166.66,0.00015604,2]
[399923733,1766880638186,-500.0,0.00015604,2]
[399923735,1766880638195,-548.53,0.00015604,2]
[399923736,1766880638205,-11749.64106265,0.00015777,2]
[399923737,1766880638214,-151.0,0.000158,2]
[399923738,1766880638224,-151.0,0.000158,2]
[399923740,1766880638234,-151.0,0.000158,2]
[399923741,1766880638243,-151.0,0.000158,2]
[399923743,1766880638254,-151.0,0.00015813,2]
[399923745,1766880638263,-151.0,0.00015813,2]
[399923746,1766880638273,-150.0,0.00015854,2]
[399923747,1766880638283,-150.0,0.00015854,2]
[399923748,1766880638293,-500.0,0.0001587,2]
[399923750,1766880638302,-200.0,0.0001587,2]
[399923751,1766880638313,-500.0,0.00015873,2]
[399923752,1766880638323,-500.0,0.00015873,2]
[399923753,1766880638332,-500.0,0.00015873,2]
[399923754,1766880638342,-500.0,0.00015878,2]
[399923755,1766880638351,-548.53,0.00015878,2]
[399923756,1766880638361,-597.83589344,0.000159,2]
[399923757,1766880638371,-171.33551074,0.000159,2]
[399923758,1766880638381,-166.66,0.00015907,2]
[399923759,1766880638391,-500.0,0.00015919,2]
[399923760,1766880638401,-207.24,0.00015961,2]
[399923762,1766880638411,-152.85,0.0001599,2]
[399923763,1766880638420,-151.0,0.00015997,2]
[399923764,1766880638429,-166918.85208473,0.00016,2]
[399923765,1766880638439,-621.11115205,0.00016,2]
[399923766,1766880638449,-109210.40982512,0.00016,4]
[399923767,1766880638458,-151.0,0.00016,2]
[399923768,1766880638468,-151.0,0.00016,2]
[399923769,1766880638477,-151.0,0.00016,2]
[399923770,1766880638487,-151.0,0.00016,2]
[399923771,1766880638496,-151.0,0.00016,2]
[399923772,1766880638505,-151.0,0.00016,2]
[399923773,1766880638515,-151.0,0.00016,2]
[399923774,1766880638524,-151.0,0.00016,2]
[399923775,1766880638533,-298.038457,0.00016,2]
[399923776,1766880638543,-151.0,0.00016,2]
[399923777,1766880638555,-151.0,0.00016,2]
[399923778,1766880638564,-151.0,0.00016,2]
[399923779,1766880638574,-151.0,0.00016,2]
[399923780,1766880638584,-151.0,0.00016,2]
[399923781,1766880638593,-151.0,0.00016,2]
[399923782,1766880638603,-151.0,0.00016,2]
[399923783,1766880638612,-151.0,0.00016,2]
[399923784,1766880638622,-151.293371,0.00016,2]
[399923785,1766880638631,-239.830442,0.00016,2]
[399923786,1766880638640,-239.830442,0.00016,2]
[399923787,1766880638650,-239.830442,0.00016,2]
[399923788,1766880638659,-239.830442,0.00016,2]
[399923789,1766880638669,-151.0,0.00016,2]
[399923790,1766880638678,-151.0,0.00016,2]
[399923791,1766880638688,-460.573653,0.00016,2]
[399923792,1766880638698,-460.573653,0.00016,2]
[399923793,1766880638707,-151.0,0.00016,2]
[399923794,1766880638717,-460.573653,0.00016,2]
[399923795,1766880638727,-151.0,0.00016,2]
[399923796,1766880638736,-460.573653,0.00016,2]
[399923797,1766880638745,-500.0,0.00016028,2]
[399923798,1766880638756,-500.0,0.00016028,2]
[399923799,1766880638766,-500.0,0.00016028,2]
[399923800,1766880638776,-500.0,0.00016028,2]
[399923801,1766880638786,-500.0,0.00016028,2]
[399923802,1766880638796,-500.0,0.00016028,2]
[399923803,1766880638805,-507.55739974,0.00016028,2]
[399923804,1766880638814,-500.0,0.00016028,2]
[399923805,1766880638824,-500.0,0.00016028,2]
[399923806,1766880638833,-500.0,0.00016028,2]
[399923807,1766880638842,-500.0,0.00016028,2]
[399923808,1766880638851,-500.0,0.00016028,2]
[399923809,1766880638860,-500.0,0.00016028,2]
[399923810,1766880638869,-561.72522061,0.00016028,2]
[399923811,1766880638883,-628.13024647,0.00016028,2]
[399923812,1766880638893,-239.830442,0.00016028,2]
[399923813,1766880638903,-239.830442,0.00016028,2]
[399923814,1766880638913,-239.830442,0.00016028,2]
[399923815,1766880638923,-239.830442,0.00016028,2]
[399923816,1766880638933,-500.0,0.00016028,2]
[399923817,1766880638943,-151.0,0.00016028,2]
[399923818,1766880638953,-460.573653,0.00016028,2]
[399923819,1766880638963,-460.573653,0.00016028,2]
[399923820,1766880638973,-151.0,0.00016028,2]
[399923821,1766880638983,-460.573653,0.00016028,2]
[399923822,1766880638992,-293.070554,0.00016028,2]
[399923823,1766880639002,-460.573653,0.00016028,2]
[399923824,1766880639012,-500.0,0.00016059,2]
[399923825,1766880639022,-151.0,0.0001607,2]
[399923826,1766880639031,-151.0,0.0001607,2]
[399923827,1766880639041,-151.0,0.0001607,2]
[399923828,1766880639051,-1067.73355716,0.00016117,2]
[399923829,1766880639060,-150.0,0.00016137,2]
[399923830,1766880639070,-150.0,0.00016137,2]
[399923831,1766880639079,-150.0,0.00016137,2]
[399923832,1766880639089,-150.0,0.00016137,2]
[399923833,1766880639098,-151.0,0.00016137,2]
[399923834,1766880639108,-151.0,0.00016137,2]
[399923835,1766880639118,-151.0,0.00016137,2]
[399923836,1766880639128,-280.301128,0.00016137,2]
[399923837,1766880639137,-151.0,0.00016137,2]
[399923838,1766880639147,-500.0,0.00016152,2]
[399923839,1766880639157,-548.53,0.00016152,2]
[399923840,1766880639167,-11749.64106265,0.00016259,2]
[399923841,1766880639176,-151.0,0.00016359,2]
[399923842,1766880639186,-151.0,0.00016359,2]
[399923843,1766880639195,-151.0,0.00016359,2]
[399923844,1766880639205,-151.0,0.00016359,2]
[399923845,1766880639215,-151.0,0.00016359,2]
[399923846,1766880639225,-151.0,0.00016359,2]
[399923847,1766880639235,-151.0,0.00016359,2]
[399923848,1766880639244,-151.0,0.00016359,2]
[399923849,1766880639254,-200.0,0.00016418,2]
[399923850,1766880639264,-150.0,0.0001642,2]
[399923851,1766880639274,-150.0,0.0001642,2]
[399923852,1766880639284,-501.03274944,0.00016421,2]
[399923853,1766880639293,-774.8558218,0.00016421,2]
[399923854,1766880639303,-548.53,0.00016426,2]
[399923856,1766880639312,-510.0,0.00016426,2]
[399923857,1766880639322,-1000.0,0.00016428,2]
[399923859,1766880639345,-500.0,0.00016438,2]
[399923861,1766880639355,-500.0,0.00016438,2]
[399923864,1766880639365,-500.0,0.00016438,2]
[399923865,1766880639375,-500.0,0.00016438,2]
[399923866,1766880639384,-500.0,0.00016438,2]
[399923867,1766880639394,-235.32754689,0.00016438,2]
[399923868,1766880639404,-1499.24,0.00016438,2]
[399923869,1766880639415,-151.0,0.00016438,2]
[399923870,1766880639425,-151.0,0.00016438,2]
[399923871,1766880639434,-150.0,0.0001648,2]
[399923872,1766880639445,-150.0,0.0001648,2]
[399923873,1766880639455,-150.0,0.0001648,2]
[399923874,1766880639464,-150.0,0.0001648,2]
[399923876,1766880639474,-150.0,0.0001648,2]
[399923877,1766880639484,-150.0,0.0001648,2]
[399923878,1766880639493,-150.0,0.0001648,2]
[399923879,1766880639503,-150.0,0.0001648,2]
[399923880,1766880639513,-150.0,0.0001648,2]
[399923881,1766880639524,-157.37598018,0.0001648,2]
[399923882,1766880639534,-150.0,0.0001648,2]
[399923883,1766880639544,-150.0,0.0001648,2]
[399923884,1766880639556,-500.0,0.0001648,2]
[399923885,1766880639566,-150.0,0.0001648,2]
[399923886,1766880639576,-150.0,0.0001648,2]
[399923887,1766880639586,-150.0,0.0001648,2]
[399923888,1766880639597,-150.0,0.0001648,2]
[399923889,1766880639607,-150.0,0.00016507,2]
[399923890,1766880639617,-150.0,0.00016507,2]
[399923891,1766880639628,-150.0,0.00016507,2]
[399923892,1766880639638,-150.0,0.00016507,2]
[399923893,1766880639648,-150.0,0.00016507,2]
[399923894,1766880639658,-150.0,0.00016507,2]
[399923895,1766880639668,-150.0,0.00016507,2]
[399923896,1766880639678,-150.0,0.00016507,2]
[399923897,1766880639688,-150.0,0.00016507,2]
[399923898,1766880639703,-150.0,0.00016507,2]
[399923899,1766880639713,-500.0,0.00016507,2]
[399923900,1766880639723,-150.0,0.00016507,2]
[399923901,1766880639733,-150.0,0.00016507,2]
[399923902,1766880639742,-200.0,0.00016535,2]
[399923903,1766880639752,-150.0,0.00016535,2]
[399923904,1766880639762,-200.0,0.00016535,2]
[399923905,1766880639772,-150.0,0.00016535,2]
[399923906,1766880639782,-200.0,0.00016535,2]
[399923907,1766880639792,-150.0,0.00016535,2]
[399923908,1766880639802,-150.0,0.00016535,2]
[399923909,1766880639812,-150.0,0.00016535,2]
[399923910,1766880639822,-150.0,0.00016535,2]
[399923911,1766880639832,-500.0,0.00016535,2]
[399923912,1766880639842,-150.0,0.00016535,2]
[399923913,1766880639851,-200.0,0.00016535,2]
[399923914,1766880639861,-150.0,0.00016535,2]
[399923915,1766880639871,-204.87198878,0.00016562,2]
[399923916,1766880639882,-199.49586485,0.00016562,2]
[399923917,1766880639892,-234.0,0.00016562,2]
[399923918,1766880639902,-150.0,0.00016562,2]
[399923919,1766880639912,-150.0,0.00016562,2]
[399923920,1766880639922,-150.0,0.00016562,2]
[399923922,1766880639932,-150.0,0.00016562,2]
[399923924,1766880639942,-150.0,0.00016562,2]
[399923926,1766880639952,-150.0,0.0001659,2]
[399923928,1766880639961,-150.0,0.0001659,2]
[399923930,1766880639971,-150.0,0.0001659,2]
[399923932,1766880639982,-200.0,0.0001659,2]
[399923934,1766880639992,-150.0,0.0001659,2]
[399923936,1766880640001,-420.0,0.00016599,2]
[399923938,1766880640011,-200.0,0.00016617,2]
[399923940,1766880640021,-250.0,0.00016617,2]
[399923942,1766880640031,-250.0,0.00016617,2]
[399923944,1766880640041,-250.0,0.00016617,2]
[399923947,1766880640056,-941.91,0.00016636,2]
[399923949,1766880640065,-267.0,0.0001664,2]
[399923951,1766880640076,-1680.0,0.00016653,2]
[399923953,1766880640086,-267.0,0.00016688,2]
[399923955,1766880640096,-548.54,0.000167,2]
[399923957,1766880640106,-150.0,0.00016703,2]
[399923959,1766880640115,-164.63,0.00016712,2]
[399923962,1766880640126,-11749.64106265,0.00016741,2]
[399923964,1766880640135,-267.0,0.00016766,2]
[399923966,1766880640144,-200.0,0.00016864,2]
[399923968,1766880640154,-287.61899177,0.00016888,2]
[399923970,1766880640164,-620.0,0.00016888,2]
[399923972,1766880640174,-322.6107,0.00016888,2]
[399923974,1766880640184,-571.44988294,0.000169,2]
[399923976,1766880640194,-10000.0,0.000169,2]
[399923978,1766880640204,-1724.93499588,0.000169,2]
[399923980,1766880640214,-1963.35852956,0.000169,2]
[399923982,1766880640224,-823.27476095,0.000169,2]
[399923983,1766880640234,-232.27152977,0.000169,2]
[399923985,1766880640244,-894.7,0.0001692,2]
[399923988,1766880640253,-401.71537473,0.0001697,2]
[399923990,1766880640264,-500.0,0.00016973,2]
[399923992,1766880640273,-500.0,0.00016973,2]
[399923994,1766880640283,-284.26223188,0.00016973,2]
[399923996,1766880640293,-500.0,0.00016973,2]
[399923998,1766880640303,-501.99535785,0.00016973,2]
[399924000,1766880640312,-501.8389288,0.00016973,2]
[399924002,1766880640322,-500.0,0.00016973,2]
[399924004,1766880640333,-427.03129014,0.00016973,2]
[399924006,1766880640342,-500.0,0.00016973,2]
[399924008,1766880640352,-500.0,0.00016973,2]
[399924010,1766880640361,-500.0,0.00016973,2]
[399924012,1766880640371,-500.0,0.00016973,2]
[399924014,1766880640381,-500.0,0.00016973,2]
[399924016,1766880640391,-258.12727716,0.00016973,2]
[399924018,1766880640401,-500.0,0.00016973,2]
[399924020,1766880640415,-500.0,0.00016973,2]
[399924022,1766880640425,-150.0,0.00016973,2]
[399924024,1766880640435,-150.0,0.00016973,2]
[399924026,1766880640444,-267.0,0.0001698,2]
[399924028,1766880640454,-150.0,0.00016986,2]
[399924031,1766880640464,-150.0,0.00016986,2]
[399924033,1766880640474,-150.0,0.00016986,2]
[399924035,1766880640484,-150.0,0.00016986,2]
[399924037,1766880640493,-150.0,0.00016986,2]
[399924039,1766880640503,-268.10915645,0.00016994,2]
[399924041,1766880640514,-214.0,0.00016997,2]
[399924043,1766880640524,-300.0,0.00016999,2]
[399924045,1766880640534,-300.0,0.00016999,2]
[399924047,1766880640544,-300.0,0.00016999,2]
[399924049,1766880640556,-643517.18910074,0.00017,2]
[399924051,1766880640566,-556283.81520279,0.00017,2]
[399924053,1766880640575,-1202180.26549272,0.00017,2]
[399924056,1766880640594,-22907.5315,0.00017,2]
[399924058,1766880640607,-3042.44705208,0.00017,2]
[399924061,1766880640619,-2230.73551244,0.00017,2]
[399924063,1766880640630,-4322.92719739,0.00017,2]
[399924065,1766880640645,-19672.1825778,0.00017,2]
[399924067,1766880640664,-2053.54201619,0.00017,2]
[399924070,1766880640676,-8700.10000013,0.00017,2]
[399924072,1766880640688,-182100.147064,0.00017,2]
[399924075,1766880640710,-1193.8,0.00017,2]
[399924077,1766880640723,-10319.3334292,0.00017,2]
[399924079,1766880640735,-1295.24488642,0.00017,2]
[399924082,1766880640752,-1064.40417485,0.00017,2]
[399924084,1766880640764,-3987.72694341,0.00017,2]
[399924086,1766880640776,-6424.85942953,0.00017,2]
[399924095,1766880640846,-338.58723437,0.000169,2]
[399924097,1766880640856,-18973.13704475,0.00017,2]
[399924099,1766880640868,-13473.14504517,0.00017,2]
[399924101,1766880640880,-3864.10583401,0.00017,2]
[399924103,1766880640892,-601.50114901,0.00017,2]
[399924106,1766880640904,-12071.99985258,0.00017,2]
[399924108,1766880640915,-7938.34899041,0.00017,2]
[399924110,1766880640927,-518.41009963,0.00017,2]
[399924114,1766880640960,-418.54789703,0.00017,2]
[399924117,1766880640971,-270.00005,0.00017,2]
[399924119,1766880640983,-336.3733244,0.00017,2]
[399924121,1766880640995,-1711.20790717,0.00017,2]
[399924124,1766880641011,-33514.33954633,0.00017,2]
[399924126,1766880641024,-4227.19490143,0.00017,2]
[399924128,1766880641036,-458.40400318,0.00017,2]
[399924130,1766880641048,-617.05038178,0.00017,2]
[399924133,1766880641064,-602.02814602,0.00017,2]
[399924135,1766880641076,-374.75319978,0.00017,2]
[399924138,1766880641088,-373608.0218863,0.00017,2]
[399924140,1766880641100,-1000.0,0.00017,2]
[399924142,1766880641110,-1000.0,0.00017,2]
[399924144,1766880641120,-1000.0,0.00017,2]
[399924146,1766880641129,-1000.0,0.00017,2]
[399924174,1766880641139,-778.22435993,0.00017,2]
[399924178,1766880641411,-151.0,0.00017,2]
[399924180,1766880641421,-151.0,0.00017,2]
[399924182,1766880641431,-151.0,0.00017,2]
[399924184,1766880641441,-248.941271,0.00017,2]
[399924186,1766880641451,-300.0,0.00017,3]
[399924188,1766880641460,-300.0,0.00017,3]
[399924190,1766880641470,-300.0,0.00017,3]
[399924192,1766880641480,-300.0,0.00017,3]
[399924194,1766880641489,-300.0,0.00017,3]
[399924198,1766880641516,-151.0,0.00017,2]
[399924200,1766880641529,-234.950329,0.00017,2]
[399924202,1766880641540,-151.0,0.00017,2]
[399924204,1766880641551,-151.0,0.00017,2]
[399924206,1766880641564,-151.0,0.00017,2]
[399924208,1766880641574,-151.0,0.00017,2]
[399924210,1766880641584,-151.0,0.00017,2]
[399924213,1766880641595,-151.0,0.00017,2]
[399924215,1766880641606,-151.0,0.00017,2]
[399924217,1766880641619,-151.0,0.00017,2]
[399924219,1766880641630,-151.0,0.00017,2]
[399924221,1766880641640,-151.0,0.00017,2]
[399924223,1766880641650,-151.0,0.00017,2]
[399924225,1766880641660,-151.0,0.00017,2]
[399924227,1766880641670,-151.0,0.00017,2]
[399924229,1766880641680,-151.0,0.00017,2]
[399924231,1766880641690,-151.0,0.00017,2]
[399924233,1766880641700,-151.0,0.00017,2]
[399924236,1766880641710,-151.0,0.00017,2]
[399924238,1766880641721,-151.0,0.00017,2]
[399924240,1766880641731,-151.0,0.00017,2]
[399924242,1766880641741,-151.0,0.00017,2]
[399924244,1766880641751,-151.0,0.00017,2]
[399924246,1766880641761,-151.0,0.00017,2]